bitfinex-derivatives/quotes_BNBF0:USTF0_20250401
["timestamp","ask_amount","ask_price","bid_price","bid_amount"]
[1743528348742,1.38438726,609.05,607.92,1.23050194]
[1743528348943,1.38438726,609.04,607.93,1.23050194]
[1743528349139,1.38438726,609.03,607.93,1.23050194]
[1743528349344,1.38438726,609.02,607.93,1.23050194]
[1743528349546,1.38438726,609.01,607.93,1.23050194]
[1743528349746,1.38438726,609.0,607.93,1.23050194]
[1743528349946,1.38438726,608.99,607.93,1.23050194]
[1743528350148,1.38438726,608.98,607.93,1.23050194]
[1743528350350,1.38438726,608.97,607.93,1.23050194]
[1743528350652,1.38438726,608.96,607.93,1.23050194]
[1743528350853,1.38438726,608.95,608.07,1.23050194]
[1743528351053,1.38438726,608.94,608.07,1.23050194]
[1743528351253,1.38438726,608.93,608.07,1.23050194]
[1743528351449,1.38438726,608.92,608.07,1.23050194]
[1743528351653,1.38438726,608.91,608.07,1.23050194]
[1743528351851,1.38438726,608.9,608.07,1.23050194]
[1743528352151,1.38438726,608.89,608.07,1.23050194]
[1743528352349,1.38438726,608.88,608.07,1.23050194]
[1743528352548,1.38438726,608.87,608.07,1.23050194]
[1743528352754,1.38438726,608.86,608.07,1.23050194]
[1743528352954,1.38438726,608.85,608.02,1.23050194]
[1743528353154,1.38438726,608.84,608.02,1.23050194]
[1743528353454,1.38438726,608.83,608.02,1.23050194]
[1743528353655,1.38438726,608.82,608.02,1.23050194]
[1743528353848,1.38438726,608.81,608.02,1.23050194]
[1743528354053,1.38438726,608.8,608.02,1.23050194]
[1743528354249,1.38438726,608.79,608.02,1.23050194]
[1743528354457,1.38438726,608.78,608.02,1.23050194]
[1743528354650,1.38438726,608.77,608.02,1.23050194]
[1743528354850,1.219,609.22,608.02,1.23050194]
[1743528355055,1.38270447,609.21,608.05,1.23050194]
[1743528355255,1.38270447,609.2,608.05,1.23050194]
[1743528355557,1.38270447,609.19,608.05,1.23050194]
[1743528355752,1.38270447,609.18,608.05,1.23050194]
[1743528355952,1.38270447,609.17,608.05,1.23050194]
[1743528356155,1.38270447,609.16,608.05,1.23050194]
[1743528356354,1.38270447,609.15,608.05,1.23050194]
[1743528356555,1.38270447,609.14,608.05,1.23050194]
[1743528356857,1.38270447,609.13,608.01,1.23050194]
[1743528357152,1.38270447,609.12,608.01,1.23050194]
[1743528357455,1.38270447,609.11,608.01,1.23050194]
[1743528357656,1.38270447,609.1,608.01,1.23050194]
[1743528357857,1.38270447,609.09,608.01,1.23050194]
[1743528358057,1.38270447,609.08,608.01,1.23050194]
[1743528358254,1.38270447,609.07,608.01,1.23050194]
[1743528358458,1.38270447,609.06,608.01,1.23050194]
[1743528358658,1.38270447,609.05,608.01,1.23050194]
[1743528358854,1.38270447,609.04,608.01,1.23050194]
[1743528359058,1.38270447,609.03,608.01,1.23050194]
[1743528359255,1.38270447,609.02,608.01,1.23050194]
[1743528359455,1.38270447,609.01,608.01,1.23050194]
[1743528359658,1.38270447,609.0,608.01,1.23050194]
[1743528359859,1.38270447,608.99,608.01,1.23050194]
[1743528360054,1.38270447,608.98,608.0,1.23050194]
[1743528360258,1.38270447,608.97,608.0,1.23050194]
[1743528360458,1.38270447,608.96,608.0,1.23050194]
[1743528360659,1.38270447,608.95,608.0,1.23050194]
[1743528360961,1.38270447,608.94,608.0,1.23050194]
[1743528361162,1.38270447,608.93,608.0,1.23050194]
[1743528361354,1.38270447,608.92,608.0,1.23050194]
[1743528361556,1.38270447,608.91,608.0,1.23050194]
[1743528361753,1.38270447,608.9,608.0,1.23050194]
[1743528361956,1.38270447,608.89,608.0,1.23050194]
[1743528362158,1.38270447,608.88,608.0,1.23050194]
[1743528362359,1.38270447,608.87,608.0,1.23050194]
[1743528362556,1.38270447,608.86,608.0,1.23050194]
[1743528362756,1.38270447,608.85,608.01,1.23050194]
[1743528362961,1.38270447,608.84,608.01,1.23050194]
[1743528363160,1.38270447,608.83,608.01,1.23050194]
[1743528363360,1.505,608.85,608.01,1.23050194]
[1743528363561,1.38268933,608.84,608.01,1.23050194]
[1743528363762,1.38268933,608.83,608.01,1.23050194]
[1743528363961,1.38268933,608.82,608.01,1.23050194]
[1743528364162,1.505,608.85,608.01,1.23050194]
[1743528364463,1.38289647,608.84,608.01,1.23050194]
[1743528364664,1.38289647,608.83,608.01,1.23050194]
[1743528364860,1.38289647,608.82,608.01,1.23050194]
[1743528365159,1.38289647,608.81,608.01,1.23050194]
[1743528365365,1.38289647,608.8,608.01,1.23050194]
[1743528365564,1.38289647,608.8,607.87,1.22592793]
[1743528365565,1.38289647,608.79,607.96,1.23050194]
[1743528365763,1.38289647,608.78,607.96,1.23050194]
[1743528365959,1.38284293,608.77,607.96,1.23050194]
[1743528366159,1.38284293,608.76,607.96,1.23050194]
[1743528366362,1.38284293,608.75,607.96,1.23050194]
[1743528366562,1.38284293,608.74,607.96,1.23050194]
[1743528366760,1.38284293,608.73,607.96,1.23050194]
[1743528366960,1.38284293,608.72,607.96,1.23050194]
[1743528367162,1.38284293,608.71,607.96,1.23050194]
[1743528367367,1.045,608.73,607.96,1.23050194]
[1743528367663,1.38298244,608.72,607.96,1.23050194]
[1743528367968,1.38298244,608.72,607.52,1.47111351]
[1743528367969,1.38291872,608.71,607.9,1.23050194]
[1743528368168,1.38291872,608.7,607.9,1.23050194]
[1743528368368,1.045,608.73,607.9,1.23050194]
[1743528368566,1.38296273,608.72,607.9,1.23050194]
[1743528368769,1.38296273,608.71,607.9,1.23050194]
[1743528368963,1.38296273,608.7,607.9,1.23050194]
[1743528369165,1.38296273,608.69,607.9,1.23050194]
[1743528369367,1.38296273,608.68,607.9,1.23050194]
[1743528369565,1.38296273,608.67,607.9,1.23050194]
[1743528369769,1.38296273,608.66,607.9,1.23050194]
[1743528369965,1.38296273,608.65,607.9,1.23050194]
[1743528370167,1.38296273,608.64,607.9,1.23050194]
[1743528370370,1.38296273,608.63,607.9,1.23050194]
[1743528370671,1.38296273,608.62,607.83,1.23050194]
[1743528370869,1.38296273,608.61,607.83,1.23050194]
[1743528371066,1.38296273,608.6,607.83,1.23050194]
[1743528371265,1.38296273,608.59,607.83,1.23050194]
[1743528371468,1.045,608.73,607.83,1.23050194]
[1743528371670,1.38295832,608.72,607.83,1.23050194]
[1743528371866,1.38295832,608.71,607.83,1.23050194]
[1743528372066,1.38295832,608.7,607.83,1.23050194]
[1743528372265,1.38295832,608.69,607.83,1.23050194]
[1743528372470,1.38295832,608.68,607.83,1.23050194]
[1743528372667,1.38295832,608.67,607.83,1.23050194]
[1743528372865,1.38295832,608.67,606.97,2.50293619]
[1743528372866,1.38295832,608.66,607.81,1.23050194]
[1743528373072,1.38295832,608.65,607.81,1.23050194]
[1743528373270,1.38295832,608.64,607.81,1.23050194]
[1743528373471,1.38295832,608.63,607.81,1.23050194]
[1743528373673,1.38295832,608.62,607.81,1.23050194]
[1743528373869,1.045,608.73,607.81,1.23050194]
[1743528374071,1.38247599,608.72,607.81,1.23050194]
[1743528374271,1.38247599,608.71,607.81,1.23050194]
[1743528374472,1.38247599,608.7,607.81,1.23050194]
[1743528374671,1.38247599,608.69,607.81,1.23050194]
[1743528374868,1.38247599,608.68,607.81,1.23050194]
[1743528375069,1.38247599,608.67,607.81,1.23050194]
[1743528375266,1.38247599,608.66,607.81,1.23050194]
[1743528375470,1.38247599,608.65,607.81,1.23050194]
[1743528375668,1.38247599,608.64,607.81,1.23050194]
[1743528375872,1.045,608.73,607.85,1.23050194]
[1743528376075,1.38255969,608.72,607.85,1.23050194]
[1743528376277,1.38255969,608.71,607.85,1.23050194]
[1743528376475,1.38255969,608.7,607.85,1.23050194]
[1743528376776,1.38255969,608.69,607.85,1.23050194]
[1743528376971,1.38255969,608.68,607.85,1.23050194]
[1743528377175,1.38255969,608.67,607.85,1.23050194]
[1743528377375,1.38255969,608.66,607.85,1.23050194]
[1743528377576,1.38255969,608.65,607.85,1.23050194]
[1743528377776,1.38255969,608.64,607.71,1.23050194]
[1743528377976,1.38219715,608.63,607.71,1.23050194]
[1743528378172,1.482,608.66,607.71,1.23050194]
[1743528378373,1.38207246,608.65,607.71,1.23050194]
[1743528378570,1.38207246,608.64,607.71,1.23050194]
[1743528378774,1.38207246,608.63,607.71,1.23050194]
[1743528378978,1.38207246,608.62,607.71,1.23050194]
[1743528379176,1.38207246,608.61,607.71,1.23050194]
[1743528379375,1.482,608.66,607.71,1.23050194]
[1743528379575,1.38270896,608.65,607.71,1.23050194]
[1743528379775,1.38275395,608.64,607.71,1.23050194]
[1743528379979,1.482,608.66,607.84,1.23050194]
[1743528379980,1.38275395,608.63,607.84,1.23050194]
[1743528380282,1.38275395,608.62,607.84,1.23050194]
[1743528380477,1.38275395,608.61,607.84,1.23050194]
[1743528380782,1.482,608.66,607.84,1.23050194]
[1743528380983,1.3825751,608.65,607.84,1.23050194]
[1743528381182,1.3825751,608.64,607.84,1.23050194]
[1743528381382,1.3825751,608.63,607.84,1.23050194]
[1743528381578,1.3825751,608.62,607.84,1.23050194]
[1743528381884,1.482,608.66,607.84,1.23050194]
[1743528382084,1.38253729,608.65,607.84,1.23050194]
[1743528382285,1.38253729,608.64,607.84,1.23050194]
[1743528382478,1.482,608.66,607.84,1.23050194]
[1743528382681,1.38248334,608.65,607.84,1.23050194]
[1743528382881,1.38248334,608.64,607.84,1.23050194]
[1743528383082,1.482,608.66,607.72,1.23050194]
[1743528383278,1.38262429,608.65,607.72,1.23050194]
[1743528383482,1.38262429,608.64,607.72,1.23050194]
[1743528383684,1.482,608.66,607.72,1.23050194]
[1743528383885,1.38281792,608.65,607.72,1.23050194]
[1743528384086,1.482,608.66,607.72,1.23050194]
[1743528384888,1.482,608.66,607.76,1.23050194]
[1743528386684,1.482,608.66,607.8,1.23050194]
[1743528388484,1.045,608.73,607.8,1.23050194]
[1743528389091,1.409,608.72,607.8,1.23050194]
[1743528389687,1.409,608.72,607.88,1.23050194]
[1743528390491,1.522,608.71,607.88,1.23050194]
[1743528390886,1.284,608.7,607.88,1.23050194]
[1743528392290,1.284,608.7,607.92,1.23050194]
[1743528395795,1.284,608.7,608.0,1.23050194]
[1743528397995,1.284,608.7,607.58,1.23050194]
[1743528398498,3.282,608.7,607.58,1.23050194]
[1743528400297,3.282,608.7,607.57,0.28591969]
[1743528400298,3.282,608.7,608.09,1.23050194]
[1743528402198,3.282,608.7,608.08,1.23050194]
[1743528404102,3.282,608.7,608.06,1.23050194]
[1743528406201,3.282,608.7,608.14,1.23050194]
[1743528406402,1.38145995,608.69,608.14,1.23050194]
[1743528406705,1.38145995,608.68,608.14,1.23050194]
[1743528406899,1.38145995,608.67,608.14,1.23050194]
[1743528407098,1.38145995,608.66,608.14,1.23050194]
[1743528407404,3.282,608.7,608.14,1.23050194]
[1743528407603,1.38147469,608.69,608.14,1.23050194]
[1743528407800,3.282,608.7,607.72,1.23050194]
[1743528408004,1.38167494,608.69,607.72,1.23050194]
[1743528408197,1.998,608.7,607.72,1.23050194]
[1743528408397,1.38166102,608.69,607.72,1.23050194]
[1743528408600,1.998,608.7,607.72,1.23050194]
[1743528408798,1.3815371,608.69,607.72,1.23050194]
[1743528409006,1.998,608.7,607.72,1.23050194]
[1743528409204,1.38140375,608.69,607.72,1.23050194]
[1743528409504,1.38131693,608.68,607.76,1.23050194]
[1743528409806,1.998,608.7,607.76,1.23050194]
[1743528410003,1.38132554,608.69,607.76,1.23050194]
[1743528410202,1.38132554,608.68,607.76,1.23050194]
[1743528410403,1.38132554,608.67,607.76,1.23050194]
[1743528410604,1.998,608.7,607.76,1.23050194]
[1743528410801,1.38131073,608.69,607.76,1.23050194]
[1743528411002,1.38131073,608.68,607.76,1.23050194]
[1743528411202,1.38131073,608.67,607.76,1.23050194]
[1743528411401,1.347,608.7,607.76,1.23050194]
[1743528411706,1.38134617,608.69,607.76,1.23050194]
[1743528411906,1.347,608.7,607.86,1.23050194]
[1743528411907,1.38134617,608.68,607.86,1.23050194]
[1743528412101,1.347,608.7,607.86,1.23050194]
[1743528412299,1.38136537,608.69,607.86,1.23050194]
[1743528412506,1.38136537,608.68,607.86,1.23050194]
[1743528412806,1.3812142,608.67,607.86,1.23050194]
[1743528413008,1.347,608.7,607.86,1.23050194]
[1743528413208,1.38122628,608.69,607.86,1.23050194]
[1743528413402,1.38122628,608.68,607.86,1.23050194]
[1743528413604,1.38122628,608.67,607.87,1.23050194]
[1743528413809,1.347,608.7,607.87,1.23050194]
[1743528414009,1.38104023,608.69,607.87,1.23050194]
[1743528414309,1.347,608.7,607.87,1.23050194]
[1743528414511,1.385,608.69,607.87,1.23050194]
[1743528414909,3.009,608.69,607.87,1.23050194]
[1743528415408,1.3806407,608.68,607.93,1.23050194]
[1743528415607,1.3806407,608.67,607.93,1.23050194]
[1743528415810,1.3806407,608.68,607.93,1.23050194]
[1743528416005,1.3806407,608.67,607.93,1.23050194]
[1743528416310,1.3806407,608.66,607.93,1.23050194]
[1743528416509,1.3806407,608.68,607.93,1.23050194]
[1743528416710,1.3806407,608.67,607.93,1.23050194]
[1743528416905,1.3806407,608.66,607.93,1.23050194]
[1743528417109,1.3806407,608.68,607.93,1.23050194]
[1743528417304,1.3806407,608.67,607.64,1.23050194]
[1743528417508,1.3806407,608.66,607.64,1.23050194]
[1743528417706,3.009,608.69,607.64,1.23050194]
[1743528419407,3.009,608.69,607.92,1.23050194]
[1743528422509,3.009,608.69,607.87,1.23050194]
[1743528424312,3.009,608.69,608.01,1.23050194]
[1743528426115,1.38332611,608.68,608.01,1.23050194]
[1743528426318,1.38332611,608.67,607.83,1.23050194]
[1743528426517,1.38332611,608.66,607.83,1.23050194]
[1743528426713,3.009,608.69,607.83,1.23050194]
[1743528426914,1.38339028,608.68,607.83,1.23050194]
[1743528427216,1.38339028,608.67,607.83,1.23050194]
[1743528427517,1.38339028,608.66,607.83,1.23050194]
[1743528427818,1.38345886,608.65,607.83,1.23050194]
[1743528428113,3.009,608.69,607.83,1.23050194]
[1743528428318,1.38340758,608.68,607.83,1.23050194]
[1743528428618,1.38340758,608.67,607.83,1.23050194]
[1743528428912,1.38340758,608.67,607.22,2.50293619]
[1743528428913,1.38340758,608.66,607.9,1.23050194]
[1743528429118,1.38340758,608.65,607.9,1.23050194]
[1743528429314,3.009,608.69,607.9,1.23050194]
[1743528429515,1.38345869,608.68,607.9,1.23050194]
[1743528429715,1.38345869,608.67,607.9,1.23050194]
[1743528429915,1.38345869,608.66,607.9,1.23050194]
[1743528430118,1.38345869,608.65,607.9,1.23050194]
[1743528430312,3.009,608.69,607.9,1.23050194]
[1743528430619,1.38346222,608.68,607.9,1.23050194]
[1743528430818,1.38346222,608.67,607.9,1.23050194]
[1743528431017,3.009,608.69,607.9,1.23050194]
[1743528431217,1.38352714,608.68,607.92,1.23050194]
[1743528431417,1.38352714,608.67,607.92,1.23050194]
[1743528431718,1.3835795,608.66,607.92,1.23050194]
[1743528431917,3.009,608.69,607.92,1.23050194]
[1743528432119,1.38374734,608.68,607.92,1.23050194]
[1743528432314,1.38374734,608.67,607.92,1.23050194]
[1743528432514,3.009,608.69,607.92,1.23050194]
[1743528432717,1.38404685,608.68,607.92,1.23050194]
[1743528432916,3.009,608.69,607.92,1.23050194]
[1743528433117,1.3840822,608.68,607.92,1.23050194]
[1743528433318,1.3840822,608.67,607.83,1.23050194]
[1743528433614,1.38421874,608.66,607.83,1.23050194]
[1743528433818,3.009,608.69,607.83,1.23050194]
[1743528434016,1.3842098,608.68,607.83,1.23050194]
[1743528434216,1.3842098,608.67,607.83,1.23050194]
[1743528434418,3.009,608.69,607.83,1.23050194]
[1743528434615,1.34,608.66,607.83,1.23050194]
[1743528435622,1.34,608.66,607.89,1.23050194]
[1743528437923,1.34,608.66,607.33,2.50293619]
[1743528437924,1.34,608.66,608.0,1.23050194]
[1743528440525,1.252,608.65,608.0,1.23050194]
[1743528440727,1.252,608.65,607.86,1.22592793]
[1743528440728,1.252,608.65,608.04,1.23050194]
[1743528441523,1.562,608.64,608.04,1.23050194]
[1743528443730,1.562,608.64,608.24,1.23050194]
[1743528446731,1.562,608.64,607.53,2.50293619]
[1743528446732,1.562,608.64,607.99,1.23050194]
[1743528448829,1.562,608.64,608.14,1.23050194]
[1743528450332,1.562,608.64,608.0,1.23050194]
[1743528452127,1.562,608.64,608.09,1.23050194]
[1743528454334,1.562,608.64,607.94,1.23050194]
[1743528456234,1.562,608.64,608.16,1.23050194]
[1743528457931,1.562,608.64,607.99,1.22592793]
[1743528457932,1.562,608.64,608.1,1.23050194]
[1743528459741,1.562,608.64,608.03,1.23050194]
[1743528462038,1.562,608.64,608.06,1.23050194]
[1743528464445,1.562,608.64,608.15,1.23050194]
[1743528466245,1.562,608.64,608.09,1.23050194]
[1743528467445,1.252,608.65,608.09,1.23050194]
[1743528468455,1.252,608.65,608.17,1.23050194]
[1743528468754,1.12,608.68,608.17,1.23050194]
[1743528471058,1.12,608.68,608.05,1.51622796]
[1743528474361,1.12,608.68,608.08,1.23050194]
[1743528476161,1.393,608.67,608.08,1.23050194]
[1743528476561,1.393,608.67,608.0,1.23050194]
[1743528476765,1.393,608.67,608.05,0.28576121]
[1743528478970,1.393,608.67,608.21,1.23050194]
[1743528480368,1.393,608.67,608.25,1.23050194]
[1743528482672,1.393,608.67,608.23,1.23050194]
[1743528487078,1.393,608.67,608.18,1.23050194]
[1743528489378,1.393,608.67,608.27,1.23050194]
[1743528490979,1.393,608.67,608.31,1.23050194]
[1743528493175,1.393,608.67,607.56,2.50293619]
[1743528493176,1.393,608.67,608.07,1.23050194]
[1743528495280,1.393,608.67,607.96,1.23050194]
[1743528496078,1.215,608.66,607.96,1.23050194]
[1743528497776,1.215,608.66,607.72,0.28584688]
[1743528499485,1.215,608.66,607.94,1.23050194]
[1743528501187,1.215,608.66,607.79,0.28581402]
[1743528501188,1.179,608.65,607.9,1.23050194]
[1743528503789,1.179,608.65,608.08,1.23050194]
[1743528505988,1.179,608.65,608.09,1.23050194]
[1743528509197,1.179,608.65,608.16,1.23050194]
[1743528511302,1.179,608.65,608.35,1.23050194]
[1743528513802,1.179,608.65,608.26,1.23050194]
[1743528515305,1.411,608.84,608.26,1.23050194]
[1743528515503,1.411,608.84,608.19,1.23050194]
[1743528515705,1.066,608.83,608.19,1.23050194]
[1743528517209,2.491,608.83,608.19,1.23050194]
[1743528517511,2.491,608.83,608.28,1.23050194]
[1743528517907,4.354,608.83,608.28,1.23050194]
[1743528519411,4.354,608.83,608.26,1.23050194]
[1743528522215,4.354,608.83,608.21,1.23050194]
[1743528524109,5.688,608.83,608.21,1.23050194]
[1743528525015,5.688,608.83,608.2,1.23050194]
[1743528526919,5.688,608.83,608.13,1.23050194]
[1743528528921,5.688,608.83,608.28,1.23050194]
[1743528530624,5.688,608.83,608.37,1.23050194]
[1743528531024,4.263,608.83,608.37,1.23050194]
[1743528533020,4.263,608.83,608.15,1.23050194]
[1743528533721,5.604,608.83,608.15,1.23050194]
[1743528535931,5.604,608.83,608.11,1.23050194]
[1743528537735,5.604,608.83,607.96,1.23050194]
[1743528540235,5.604,608.83,608.04,1.23050194]
[1743528542237,5.604,608.83,608.07,1.23050194]
[1743528544833,5.604,608.83,608.03,1.23050194]
[1743528547343,5.604,608.83,608.19,1.23050194]
[1743528550145,5.604,608.83,608.28,1.23050194]
[1743528554047,5.604,608.83,608.33,1.23050194]
[1743528554344,0.28577646,609.51,608.33,1.23050194]
[1743528554549,1.38418406,609.5,608.33,1.23050194]
[1743528554749,1.38418406,609.49,608.33,1.23050194]
[1743528554953,1.38418406,609.48,608.33,1.23050194]
[1743528555153,1.38418406,609.47,608.33,1.23050194]
[1743528555348,1.38418406,609.46,608.33,1.23050194]
[1743528555548,1.38418406,609.45,608.33,1.23050194]
[1743528555748,1.38418406,609.44,608.33,1.23050194]
[1743528555946,0.28555603,609.51,608.33,1.23050194]
[1743528556252,0.28555603,609.51,608.35,1.23050194]
[1743528556550,1.38453072,609.5,608.35,1.23050194]
[1743528556753,1.38453072,609.49,608.35,1.23050194]
[1743528556948,1.38453072,609.48,608.35,1.23050194]
[1743528557148,1.38453072,609.47,608.35,1.23050194]
[1743528557348,1.38453072,609.46,608.35,1.23050194]
[1743528557548,1.38453072,609.45,608.35,1.23050194]
[1743528557756,1.38453072,609.44,608.35,1.23050194]
[1743528557949,1.38453072,609.43,608.35,1.23050194]
[1743528558254,1.38453072,609.42,608.35,1.23050194]
[1743528558453,1.38453072,609.41,608.35,1.23050194]
[1743528558753,1.38453072,609.4,608.35,1.23050194]
[1743528559054,1.38453072,609.39,608.27,1.23050194]
[1743528559255,1.38453072,609.38,608.27,1.23050194]
[1743528559453,1.38453072,609.37,608.27,1.23050194]
[1743528559753,1.38453072,609.36,608.27,1.23050194]
[1743528559946,2.992,609.44,608.27,1.23050194]
[1743528559947,1.38453072,609.35,608.27,1.23050194]
[1743528560149,1.38453072,609.34,608.27,1.23050194]
[1743528560351,1.38453072,609.33,608.27,1.23050194]
[1743528560547,1.38453072,609.32,608.27,1.23050194]
[1743528560748,1.38453072,609.31,608.27,1.23050194]
[1743528560953,1.38453072,609.3,608.19,1.23050194]
[1743528561153,1.38453072,609.29,608.19,1.23050194]
[1743528561453,1.38453072,609.28,608.19,1.23050194]
[1743528561655,1.38453072,609.27,608.19,1.23050194]
[1743528561856,1.38453072,609.26,608.19,1.23050194]
[1743528562155,1.38453072,609.25,608.19,1.23050194]
[1743528562349,1.38453072,609.24,608.19,1.23050194]
[1743528562553,1.38453072,609.23,608.19,1.23050194]
[1743528562750,1.38453072,609.22,608.19,1.23050194]
[1743528562948,1.38453072,609.21,608.19,1.23050194]
[1743528563154,1.38453072,609.2,608.19,1.23050194]
[1743528563353,1.38453072,609.19,608.19,1.23050194]
[1743528563551,1.38453072,609.19,608.03,1.22592793]
[1743528563552,1.38453072,609.18,608.28,1.23050194]
[1743528563747,1.38453072,609.17,608.28,1.23050194]
[1743528563950,1.38453072,609.16,608.28,1.23050194]
[1743528564254,1.38453072,609.15,608.28,1.23050194]
[1743528564455,1.38453072,609.14,608.28,1.23050194]
[1743528564656,1.38453072,609.13,608.28,1.23050194]
[1743528564954,1.38453072,609.12,608.28,1.23050194]
[1743528565150,1.38453072,609.11,608.28,1.23050194]
[1743528565356,1.38453072,609.1,608.28,1.23050194]
[1743528565551,1.38453072,609.09,608.28,1.23050194]
[1743528565753,1.38453072,609.08,608.28,1.23050194]
[1743528565953,1.38453072,609.07,608.28,1.23050194]
[1743528566253,1.38453072,609.07,600.84,0.60287904]
[1743528566254,1.38473371,609.06,608.22,1.23050194]
[1743528566555,1.38473371,609.05,608.22,1.23050194]
[1743528566757,1.38473371,609.04,608.22,1.23050194]
[1743528567056,1.38473371,609.03,608.22,1.23050194]
[1743528567255,1.38473371,609.02,608.22,1.23050194]
[1743528567456,1.38473371,609.01,608.22,1.23050194]
[1743528567657,1.38473371,609.0,608.22,1.23050194]
[1743528567851,1.38473371,608.99,608.22,1.23050194]
[1743528568156,1.38438853,608.98,608.22,1.23050194]
[1743528568356,1.38438853,608.97,608.22,1.23050194]
[1743528568556,1.38438853,608.96,608.18,1.23050194]
[1743528568757,1.38438853,608.95,608.18,1.23050194]
[1743528568959,0.28579289,609.31,608.18,1.23050194]
[1743528568960,1.38438853,608.94,608.18,1.23050194]
[1743528569158,1.38438853,608.93,608.18,1.23050194]
[1743528569359,1.38438853,608.92,608.18,1.23050194]
[1743528569556,1.38438853,608.91,608.18,1.23050194]
[1743528569761,1.38438853,608.9,608.18,1.23050194]
[1743528569962,1.38438853,608.89,608.18,1.23050194]
[1743528570162,1.3840533,608.88,608.18,1.23050194]
[1743528570362,1.3840533,608.87,608.18,1.23050194]
[1743528570564,1.3840533,608.86,608.18,1.23050194]
[1743528570763,1.3840533,608.85,608.18,1.23050194]
[1743528571064,1.3840533,608.84,608.11,1.23050194]
[1743528571259,1.3840533,608.83,608.11,1.23050194]
[1743528571460,1.3840533,608.82,608.11,1.23050194]
[1743528571662,1.3840533,608.81,608.11,1.23050194]
[1743528571858,1.3840533,608.8,608.11,1.23050194]
[1743528572057,1.3840533,608.79,608.11,1.23050194]
[1743528572258,0.28579289,609.31,608.11,1.23050194]
[1743528572456,1.38495644,609.3,608.11,1.23050194]
[1743528572661,1.38495644,609.29,608.11,1.23050194]
[1743528572866,1.38495644,609.28,607.93,1.23050194]
[1743528573163,1.38495644,609.27,607.93,1.23050194]
[1743528573357,1.38495644,609.26,607.93,1.23050194]
[1743528573563,1.38495644,609.25,607.93,1.23050194]
[1743528573766,1.38495644,609.24,607.93,1.23050194]
[1743528573961,1.38495644,609.23,607.93,1.23050194]
[1743528574163,1.38495644,609.22,607.93,1.23050194]
[1743528574365,1.344,609.29,607.93,1.23050194]
[1743528574565,1.344,609.29,607.92,1.23050194]
[1743528575062,1.38472659,609.28,607.92,1.23050194]
[1743528575266,1.448,609.28,607.92,1.23050194]
[1743528575660,1.38477289,609.27,607.92,1.23050194]
[1743528575860,1.38477289,609.26,607.92,1.23050194]
[1743528576061,1.38477289,609.25,607.92,1.23050194]
[1743528576265,1.38477289,609.24,607.92,1.23050194]
[1743528576466,1.38477289,609.23,607.92,1.23050194]
[1743528576666,1.38477289,609.22,607.92,1.23050194]
[1743528576865,1.38477289,609.21,607.92,1.23050194]
[1743528577059,1.38477289,609.2,607.92,1.23050194]
[1743528577262,1.38477289,609.19,607.92,1.23050194]
[1743528577465,1.3848628,609.18,607.92,1.23050194]
[1743528577664,1.3848628,609.17,607.92,1.23050194]
[1743528577860,1.3848628,609.16,607.92,1.23050194]
[1743528578059,1.3848628,609.15,607.92,1.23050194]
[1743528578260,1.3848628,609.14,607.92,1.23050194]
[1743528578460,1.3848628,609.13,607.92,1.23050194]
[1743528578664,1.3848628,609.12,607.79,1.23050194]
[1743528578865,1.3848628,609.11,607.79,1.23050194]
[1743528579062,1.3848628,609.1,607.79,1.23050194]
[1743528579262,1.3848628,609.09,607.79,1.23050194]
[1743528579466,1.3848628,609.08,607.79,1.23050194]
[1743528579667,1.3848628,609.07,607.79,1.23050194]
[1743528579867,1.3848628,609.06,607.79,1.23050194]
[1743528580066,1.3848628,609.05,607.79,1.23050194]
[1743528580369,1.3848628,609.04,607.79,1.23050194]
[1743528580570,1.3848628,609.03,607.79,1.23050194]
[1743528580864,1.3848628,609.02,607.79,1.23050194]
[1743528581069,1.3848628,609.01,607.8,1.23050194]
[1743528581269,1.3848628,609.0,607.8,1.23050194]
[1743528581466,1.3848628,608.99,607.8,1.23050194]
[1743528581669,1.3848628,608.98,607.8,1.23050194]
[1743528581865,1.3848628,608.97,607.8,1.23050194]
[1743528582062,1.3848628,608.96,607.8,1.23050194]
[1743528582368,1.3848628,608.95,607.8,1.23050194]
[1743528582669,1.3848628,608.94,607.8,1.23050194]
[1743528582863,1.3848628,608.93,607.8,1.23050194]
[1743528583068,1.3848628,608.92,607.8,1.23050194]
[1743528583265,1.38466298,608.91,607.9,1.23050194]
[1743528583467,1.448,609.28,607.9,1.23050194]
[1743528583670,1.38469811,609.27,607.9,1.23050194]
[1743528583863,1.38469811,609.26,607.9,1.23050194]
[1743528584064,1.38469811,609.25,607.9,1.23050194]
[1743528584268,1.38469811,609.24,607.9,1.23050194]
[1743528584465,1.38469811,609.23,607.9,1.23050194]
[1743528584770,1.38469811,609.22,607.9,1.23050194]